[Event "Titled Tuesday Blitz April 18 Late 2023"]
[White "Salik, Serkan"]
[Black "Chemin, Justo Reinaldo"]
[WhiteFideId "30952492"]
[BlackFideId "2101580"]
[WhiteElo "2545"]
[BlackElo "1940"]
[Result "1-0"]
[Round "01"]
[TimeControl "180+2"]
[Date "2023.04.18"]
[WhiteClock "0:01:19"]
[BlackClock "0:01:05"]

1. d4 {[%clk 0:03:00]}  e6 {[%clk 0:02:59]} 2. c4 {[%clk 0:03:00]}  d5 {[%clk 0:02:59]} 3. Nc3 {[%clk 0:03:01]}  c6 {[%clk 0:03:00]} 4. Nf3 {[%clk 0:03:00]}  dxc4 {[%clk 0:02:58]} 5. a4 {[%clk 0:02:58]}  Bb4 {[%clk 0:02:58]} 6. e4 {[%clk 0:02:58]}  b5 {[%clk 0:02:58]} 7. Be2 {[%clk 0:02:58]}  Nf6 {[%clk 0:02:56]} 8. e5 {[%clk 0:02:57]}  Ne4 {[%clk 0:02:45]} 9. Qc2 {[%clk 0:02:55]}  Nxc3 {[%clk 0:02:42]} 10. bxc3 {[%clk 0:02:56]}  Be7 {[%clk 0:02:42]} 11. h4 {[%clk 0:02:42]}  a6 {[%clk 0:02:40]} 12. h5 {[%clk 0:02:38]}  h6 {[%clk 0:02:39]} 13. Qe4 {[%clk 0:02:35]}  Qd5 {[%clk 0:02:20]} 14. Qg4 {[%clk 0:02:35]}  Kf8 {[%clk 0:02:17]} 15. Nd2 {[%clk 0:02:35]}  Bb7 {[%clk 0:02:09]} 16. Bf3 {[%clk 0:02:32]}  Qd8 {[%clk 0:02:07]} 17. Rh3 {[%clk 0:02:24]}  Qc7 {[%clk 0:01:41]} 18. Rg3 {[%clk 0:02:21]}  Rg8 {[%clk 0:01:38]} 19. Ne4 {[%clk 0:02:15]}  Nd7 {[%clk 0:01:32]} 20. Bxh6 {[%clk 0:02:13]}  c5 {[%clk 0:01:18]} 21. Bxg7+ {[%clk 0:01:59]}  Ke8 {[%clk 0:01:18]} 22. h6 {[%clk 0:01:45]}  Nf8 {[%clk 0:01:18]} 23. Qf4 {[%clk 0:01:25]}  cxd4 {[%clk 0:01:08]} 24. Qxf7+ {[%clk 0:01:19]}  Kxf7 {[%clk 0:01:05]} 25. Bh5+ {[%clk 0:01:19]} 1-0


[Site "https://www.chess.com"]

[Event "Titled Tuesday Blitz April 18 Late 2023"]
[White "Torres Dominguez, David"]
[Black "koncheto"]
[WhiteFideId "2220857"]
[WhiteElo "1999"]
[BlackElo "2541"]
[Result "0-1"]
[Round "01"]
[TimeControl "180+2"]
[Date "2023.04.18"]
[WhiteClock "0:00:02"]
[BlackClock "0:00:06"]

1. e4 {[%clk 0:02:59]}  c5 {[%clk 0:02:59]} 2. Nc3 {[%clk 0:02:59]}  Nc6 {[%clk 0:02:58]} 3. Bb5 {[%clk 0:02:59]}  Nd4 {[%clk 0:02:58]} 4. Bc4 {[%clk 0:02:58]}  g6 {[%clk 0:02:57]} 5. Nf3 {[%clk 0:02:58]}  Bg7 {[%clk 0:02:57]} 6. Nxd4 {[%clk 0:02:57]}  cxd4 {[%clk 0:02:56]} 7. Qf3 {[%clk 0:02:56]}  Nh6 {[%clk 0:02:42]} 8. Ne2 {[%clk 0:02:53]}  O-O {[%clk 0:02:38]} 9. d3 {[%clk 0:02:53]}  e6 {[%clk 0:02:35]} 10. O-O {[%clk 0:02:48]}  f5 {[%clk 0:02:31]} 11. Qg3 {[%clk 0:02:44]}  Nf7 {[%clk 0:02:24]} 12. exf5 {[%clk 0:02:38]}  exf5 {[%clk 0:02:18]} 13. Bg5 {[%clk 0:02:30]}  Qa5 {[%clk 0:01:50]} 14. Be7 {[%clk 0:02:19]}  Re8 {[%clk 0:01:49]} 15. Qd6 {[%clk 0:02:17]}  Be5 {[%clk 0:01:43]} 16. Qb4 {[%clk 0:02:09]}  Qxb4 {[%clk 0:01:34]} 17. Bxb4 {[%clk 0:02:09]}  b6 {[%clk 0:01:35]} 18. Bd5 {[%clk 0:02:05]}  Rb8 {[%clk 0:01:35]} 19. f4 {[%clk 0:02:02]}  Bg7 {[%clk 0:01:22]} 20. Rae1 {[%clk 0:01:59]}  Bb7 {[%clk 0:01:16]} 21. Bc4 {[%clk 0:01:52]}  d5 {[%clk 0:01:08]} 22. Bb5 {[%clk 0:01:45]}  Re3 {[%clk 0:01:01]} 23. Bd2 {[%clk 0:01:42]}  Re7 {[%clk 0:00:48]} 24. Ba4 {[%clk 0:01:42]}  a6 {[%clk 0:00:46]} 25. Bb3 {[%clk 0:01:38]}  Rbe8 {[%clk 0:00:46]} 26. Kf2 {[%clk 0:01:30]}  Bf6 {[%clk 0:00:30]} 27. g3 {[%clk 0:01:28]}  Kg7 {[%clk 0:00:30]} 28. Ba4 {[%clk 0:01:23]}  Rc8 {[%clk 0:00:28]} 29. Bb3 {[%clk 0:01:23]}  h5 {[%clk 0:00:27]} 30. c3 {[%clk 0:01:17]}  dxc3 {[%clk 0:00:22]} 31. bxc3 {[%clk 0:01:17]}  h4 {[%clk 0:00:21]} 32. Nd4 {[%clk 0:01:14]}  hxg3+ {[%clk 0:00:17]} 33. hxg3 {[%clk 0:01:12]}  Rce8 {[%clk 0:00:17]} 34. Rxe7 {[%clk 0:01:10]}  Rxe7 {[%clk 0:00:18]} 35. Re1 {[%clk 0:01:07]}  Nh6 {[%clk 0:00:19]} 36. Kf3 {[%clk 0:01:01]}  Rxe1 {[%clk 0:00:14]} 37. Bxe1 {[%clk 0:01:00]}  Kf7 {[%clk 0:00:14]} 38. Nc2 {[%clk 0:00:59]}  Ng4 {[%clk 0:00:14]} 39. Ne3 {[%clk 0:00:57]}  Nxe3 {[%clk 0:00:12]} 40. Kxe3 {[%clk 0:00:58]}  Ke7 {[%clk 0:00:11]} 41. Kd2 {[%clk 0:00:57]}  Kd6 {[%clk 0:00:10]} 42. Bf2 {[%clk 0:00:57]}  b5 {[%clk 0:00:09]} 43. Bd1 {[%clk 0:00:50]}  a5 {[%clk 0:00:09]} 44. g4 {[%clk 0:00:50]}  b4 {[%clk 0:00:06]} 45. cxb4 {[%clk 0:00:48]}  axb4 {[%clk 0:00:07]} 46. gxf5 {[%clk 0:00:47]}  gxf5 {[%clk 0:00:08]} 47. d4 {[%clk 0:00:44]}  Bd8 {[%clk 0:00:05]} 48. Kc2 {[%clk 0:00:40]}  Ke6 {[%clk 0:00:04]} 49. Kb3 {[%clk 0:00:39]}  Be7 {[%clk 0:00:05]} 50. Be1 {[%clk 0:00:39]}  Bd6 {[%clk 0:00:05]} 51. Bd2 {[%clk 0:00:38]}  Ba6 {[%clk 0:00:05]} 52. Bxb4 {[%clk 0:00:27]}  Bc4+ {[%clk 0:00:05]} 53. Ka3 {[%clk 0:00:20]}  Bxf4 {[%clk 0:00:06]} 54. Bb3 {[%clk 0:00:18]}  Bb5 {[%clk 0:00:05]} 55. Be1 {[%clk 0:00:17]}  Bc1+ {[%clk 0:00:05]} 56. Kb4 {[%clk 0:00:16]}  Be2 {[%clk 0:00:04]} 57. Kc3 {[%clk 0:00:15]}  f4 {[%clk 0:00:04]} 58. Bd2 {[%clk 0:00:16]}  Bxd2+ {[%clk 0:00:02]} 59. Kxd2 {[%clk 0:00:15]}  Bc4 {[%clk 0:00:03]} 60. Bd1 {[%clk 0:00:11]}  Bxa2 {[%clk 0:00:03]} 61. Bf3 {[%clk 0:00:11]}  Kf5 {[%clk 0:00:02]} 62. Ke2 {[%clk 0:00:09]}  Bc4+ {[%clk 0:00:03]} 63. Kf2 {[%clk 0:00:10]}  Kf6 {[%clk 0:00:02]} 64. Bg4 {[%clk 0:00:09]}  Kg5 {[%clk 0:00:02]} 65. Be6 {[%clk 0:00:08]}  Kf6 {[%clk 0:00:02]} 66. Bd7 {[%clk 0:00:07]}  Bd3 {[%clk 0:00:02]} 67. Kf3 {[%clk 0:00:07]}  Kg5 {[%clk 0:00:02]} 68. Be6 {[%clk 0:00:07]}  Be4+ {[%clk 0:00:03]} 69. Kf2 {[%clk 0:00:07]}  Kf6 {[%clk 0:00:04]} 70. Bd7 {[%clk 0:00:07]}  Ke7 {[%clk 0:00:04]} 71. Bg4 {[%clk 0:00:07]}  Kd6 {[%clk 0:00:05]} 72. Bh5 {[%clk 0:00:04]}  Kc6 {[%clk 0:00:06]} 73. Bf3 {[%clk 0:00:04]}  Kb5 {[%clk 0:00:06]} 74. Be2+ {[%clk 0:00:02]}  Kb4 {[%clk 0:00:06]} 0-1


[Site "https://www.chess.com"]

[Event "Titled Tuesday Blitz April 18 Late 2023"]
[White "angelgab3"]
[Black "Manfroi, Alexander Giannini"]
[BlackFideId "22739335"]
[WhiteElo "2537"]
[BlackElo "1618"]
[Result "1-0"]
[Round "01"]
[TimeControl "180+2"]
[Date "2023.04.18"]
[WhiteClock "0:01:51"]
[BlackClock "0:00:49"]

1. e4 {[%clk 0:03:00]}  c5 {[%clk 0:02:59]} 2. Nf3 {[%clk 0:03:01]}  Nc6 {[%clk 0:02:59]} 3. d4 {[%clk 0:03:01]}  cxd4 {[%clk 0:03:00]} 4. Nxd4 {[%clk 0:03:02]}  e5 {[%clk 0:03:00]} 5. Nb5 {[%clk 0:03:01]}  a6 {[%clk 0:03:01]} 6. Nd6+ {[%clk 0:03:01]}  Bxd6 {[%clk 0:03:01]} 7. Qxd6 {[%clk 0:03:02]}  Qf6 {[%clk 0:03:01]} 8. Qxf6 {[%clk 0:03:01]}  Nxf6 {[%clk 0:03:02]} 9. f3 {[%clk 0:03:02]}  d5 {[%clk 0:03:02]} 10. exd5 {[%clk 0:03:03]}  Nxd5 {[%clk 0:03:03]} 11. Bc4 {[%clk 0:03:03]}  Be6 {[%clk 0:02:58]} 12. O-O {[%clk 0:02:57]}  O-O-O {[%clk 0:02:56]} 13. c3 {[%clk 0:02:57]}  Rhe8 {[%clk 0:02:51]} 14. Re1 {[%clk 0:02:56]}  f6 {[%clk 0:02:51]} 15. Na3 {[%clk 0:02:55]}  b5 {[%clk 0:02:47]} 16. Bb3 {[%clk 0:02:53]}  b4 {[%clk 0:02:46]} 17. cxb4 {[%clk 0:02:52]}  Ndxb4 {[%clk 0:02:40]} 18. Bxe6+ {[%clk 0:02:51]}  Rxe6 {[%clk 0:02:41]} 19. Be3 {[%clk 0:02:52]}  Nd3 {[%clk 0:02:23]} 20. Re2 {[%clk 0:02:48]}  Red6 {[%clk 0:02:16]} 21. Nc4 {[%clk 0:02:45]}  Rd4 {[%clk 0:02:01]} 22. Bxd4 {[%clk 0:02:38]}  Nxd4 {[%clk 0:01:56]} 23. Rd2 {[%clk 0:02:38]}  Nf4 {[%clk 0:01:54]} 24. Kf2 {[%clk 0:02:30]}  Kb7 {[%clk 0:01:48]} 25. Rc1 {[%clk 0:02:28]}  h5 {[%clk 0:01:44]} 26. g3 {[%clk 0:02:28]}  Nh3+ {[%clk 0:01:39]} 27. Kg2 {[%clk 0:02:28]}  Ng5 {[%clk 0:01:37]} 28. Rc3 {[%clk 0:02:27]}  Nge6 {[%clk 0:01:21]} 29. Ne3 {[%clk 0:02:25]}  g6 {[%clk 0:01:18]} 30. Nc2 {[%clk 0:02:24]}  Nb5 {[%clk 0:01:16]} 31. Rxd8 {[%clk 0:02:22]}  Nxd8 {[%clk 0:01:17]} 32. Rd3 {[%clk 0:02:22]}  Ne6 {[%clk 0:01:17]} 33. Rd7+ {[%clk 0:02:20]}  Kc6 {[%clk 0:01:16]} 34. Rf7 {[%clk 0:02:21]}  f5 {[%clk 0:01:14]} 35. Rf6 {[%clk 0:02:21]}  Kd5 {[%clk 0:01:11]} 36. Ne3+ {[%clk 0:02:20]}  Kd4 {[%clk 0:01:11]} 37. Rxg6 {[%clk 0:02:21]}  Kxe3 {[%clk 0:01:11]} 38. Rxe6 {[%clk 0:02:21]}  e4 {[%clk 0:01:10]} 39. fxe4 {[%clk 0:02:21]}  fxe4 {[%clk 0:01:10]} 40. Rxa6 {[%clk 0:02:22]}  Nd4 {[%clk 0:01:07]} 41. Ra3+ {[%clk 0:02:08]}  Ke2 {[%clk 0:01:03]} 42. Ra4 {[%clk 0:02:09]}  Kd3 {[%clk 0:00:58]} 43. Rxd4+ {[%clk 0:02:09]}  Kxd4 {[%clk 0:00:59]} 44. Kf2 {[%clk 0:02:10]}  Kd3 {[%clk 0:00:59]} 45. Ke1 {[%clk 0:02:09]}  Ke3 {[%clk 0:00:53]} 46. a4 {[%clk 0:02:07]}  Kf3 {[%clk 0:00:50]} 47. a5 {[%clk 0:02:04]}  Kg2 {[%clk 0:00:50]} 48. a6 {[%clk 0:02:05]}  Kxh2 {[%clk 0:00:51]} 49. a7 {[%clk 0:02:06]}  h4 {[%clk 0:00:49]} 50. a8=Q {[%clk 0:02:07]}  hxg3 {[%clk 0:00:50]} 51. Qxe4 {[%clk 0:02:07]}  g2 {[%clk 0:00:50]} 52. Qh4+ {[%clk 0:01:52]}  Kg1 {[%clk 0:00:50]} 53. Kd2 {[%clk 0:01:52]}  Kf1 {[%clk 0:00:50]} 54. Qf4+ {[%clk 0:01:52]}  Kg1 {[%clk 0:00:50]} 55. Ke3 {[%clk 0:01:51]}  Kh1 {[%clk 0:00:49]} 56. Qh4+ {[%clk 0:01:52]}  Kg1 {[%clk 0:00:50]} 57. Kf3 {[%clk 0:01:50]}  Kf1 {[%clk 0:00:49]} 58. Qf2# {[%clk 0:01:51]} 1-0


[Site "https://www.chess.com"]

[Event "Titled Tuesday Blitz April 18 Late 2023"]
[White "Kovacevic, Radmila"]
[Black "Poeta, Caio Medeiros"]
[WhiteFideId "933171"]
[BlackFideId "2142660"]
[WhiteElo "2194"]
[BlackElo "2191"]
[Result "1-0"]
[Round "01"]
[TimeControl "180+2"]
[Date "2023.04.18"]
[WhiteClock "0:00:16"]
[BlackClock "0:00:09"]

1. e4 {[%clk 0:03:00]}  c6 {[%clk 0:02:59]} 2. d4 {[%clk 0:03:00]}  d5 {[%clk 0:03:00]} 3. e5 {[%clk 0:03:00]}  c5 {[%clk 0:03:00]} 4. dxc5 {[%clk 0:02:59]}  Nc6 {[%clk 0:03:01]} 5. Bb5 {[%clk 0:02:58]}  e6 {[%clk 0:02:59]} 6. b4 {[%clk 0:02:51]}  a5 {[%clk 0:02:55]} 7. c3 {[%clk 0:02:50]}  axb4 {[%clk 0:02:42]} 8. cxb4 {[%clk 0:02:51]}  Ne7 {[%clk 0:02:40]} 9. Nf3 {[%clk 0:02:34]}  Bd7 {[%clk 0:02:35]} 10. Bxc6 {[%clk 0:02:09]}  Nxc6 {[%clk 0:02:34]} 11. Bd2 {[%clk 0:01:58]}  Qc7 {[%clk 0:02:33]} 12. Qe2 {[%clk 0:01:51]}  Na7 {[%clk 0:02:23]} 13. a4 {[%clk 0:01:42]}  Nc8 {[%clk 0:02:22]} 14. Nc3 {[%clk 0:01:40]}  b6 {[%clk 0:02:19]} 15. Nb5 {[%clk 0:01:38]}  Bxb5 {[%clk 0:02:18]} 16. Qxb5+ {[%clk 0:01:38]}  Qd7 {[%clk 0:02:16]} 17. Qxd7+ {[%clk 0:01:15]}  Kxd7 {[%clk 0:02:15]} 18. cxb6 {[%clk 0:01:12]}  Nxb6 {[%clk 0:02:16]} 19. a5 {[%clk 0:01:09]}  Nc4 {[%clk 0:02:16]} 20. Bc3 {[%clk 0:01:08]}  Rb8 {[%clk 0:02:09]} 21. Ra4 {[%clk 0:00:54]}  Kc6 {[%clk 0:02:01]} 22. O-O {[%clk 0:00:49]}  Kb5 {[%clk 0:01:59]} 23. Rfa1 {[%clk 0:00:48]}  Ka6 {[%clk 0:01:52]} 24. Nd4 {[%clk 0:00:46]}  Be7 {[%clk 0:01:52]} 25. b5+ {[%clk 0:00:45]}  Kb7 {[%clk 0:01:50]} 26. a6+ {[%clk 0:00:38]}  Kb6 {[%clk 0:01:46]} 27. Nc6 {[%clk 0:00:36]}  Bc5 {[%clk 0:01:03]} 28. Nxb8 {[%clk 0:00:35]}  Rxb8 {[%clk 0:01:04]} 29. a7 {[%clk 0:00:35]}  Ra8 {[%clk 0:01:04]} 30. Ra6+ {[%clk 0:00:33]}  Kb7 {[%clk 0:01:03]} 31. Kf1 {[%clk 0:00:31]}  d4 {[%clk 0:00:58]} 32. Be1 {[%clk 0:00:30]}  Bb6 {[%clk 0:00:56]} 33. R1a2 {[%clk 0:00:28]}  Nxe5 {[%clk 0:00:55]} 34. Ke2 {[%clk 0:00:27]}  Nd7 {[%clk 0:00:54]} 35. Kd3 {[%clk 0:00:27]}  Nc5+ {[%clk 0:00:51]} 36. Kc4 {[%clk 0:00:27]}  Nxa6 {[%clk 0:00:48]} 37. Rxa6 {[%clk 0:00:27]}  e5 {[%clk 0:00:47]} 38. Kd5 {[%clk 0:00:26]}  f6 {[%clk 0:00:46]} 39. Bb4 {[%clk 0:00:25]}  Rd8+ {[%clk 0:00:45]} 40. Ke4 {[%clk 0:00:24]}  Bxa7 {[%clk 0:00:43]} 41. Rd6 {[%clk 0:00:21]}  Rxd6 {[%clk 0:00:37]} 42. Bxd6 {[%clk 0:00:22]}  Kb6 {[%clk 0:00:38]} 43. Bf8 {[%clk 0:00:21]}  g6 {[%clk 0:00:30]} 44. Be7 {[%clk 0:00:20]}  f5+ {[%clk 0:00:29]} 45. Kxe5 {[%clk 0:00:20]}  Kxb5 {[%clk 0:00:30]} 46. Bg5 {[%clk 0:00:18]}  Kc4 {[%clk 0:00:30]} 47. Kf6 {[%clk 0:00:19]}  d3 {[%clk 0:00:29]} 48. Kg7 {[%clk 0:00:19]}  Bxf2 {[%clk 0:00:21]} 49. Kxh7 {[%clk 0:00:18]}  Bh4 {[%clk 0:00:21]} 50. Bd2 {[%clk 0:00:17]}  Bf6 {[%clk 0:00:16]} 51. Kxg6 {[%clk 0:00:17]}  Bc3 {[%clk 0:00:16]} 52. Bf4 {[%clk 0:00:17]}  Be5 {[%clk 0:00:14]} 53. Bd2 {[%clk 0:00:16]}  f4 {[%clk 0:00:13]} 54. Kf5 {[%clk 0:00:16]}  Kd4 {[%clk 0:00:14]} 55. h4 {[%clk 0:00:15]}  Bd6 {[%clk 0:00:05]} 56. h5 {[%clk 0:00:15]}  Bf8 {[%clk 0:00:05]} 57. Bxf4 {[%clk 0:00:13]}  Kc3 {[%clk 0:00:05]} 58. g4 {[%clk 0:00:12]}  Kc2 {[%clk 0:00:06]} 59. g5 {[%clk 0:00:12]}  d2 {[%clk 0:00:06]} 60. Bxd2 {[%clk 0:00:12]}  Kxd2 {[%clk 0:00:07]} 61. Kg6 {[%clk 0:00:12]}  Ke3 {[%clk 0:00:07]} 62. Kf7 {[%clk 0:00:12]}  Ba3 {[%clk 0:00:07]} 63. g6 {[%clk 0:00:12]}  Bb2 {[%clk 0:00:06]} 64. g7 {[%clk 0:00:12]}  Bxg7 {[%clk 0:00:06]} 65. Kxg7 {[%clk 0:00:13]}  Kf4 {[%clk 0:00:07]} 66. h6 {[%clk 0:00:14]}  Kg5 {[%clk 0:00:08]} 67. h7 {[%clk 0:00:15]}  Kf5 {[%clk 0:00:09]} 68. h8=Q {[%clk 0:00:15]}  Kg4 {[%clk 0:00:10]} 69. Qf8 {[%clk 0:00:16]}  Kg5 {[%clk 0:00:09]} 70. Qf6+ {[%clk 0:00:16]} 1-0


[Site "https://www.chess.com"]

[Event "Titled Tuesday Blitz April 18 Late 2023"]
[White "Allam, Yara"]
[Black "Tomaszewski, Kacper"]
[WhiteFideId "10615709"]
[BlackFideId "1127373"]
[WhiteElo "1758"]
[BlackElo "2211"]
[Result "0-1"]
[Round "01"]
[TimeControl "180+2"]
[Date "2023.04.18"]
[WhiteClock "0:00:32"]
[BlackClock "0:00:14"]

1. e4 {[%clk 0:03:00]}  d6 {[%clk 0:02:59]} 2. d4 {[%clk 0:03:00]}  Nf6 {[%clk 0:03:00]} 3. Bd3 {[%clk 0:03:00]}  Nbd7 {[%clk 0:02:59]} 4. c3 {[%clk 0:03:00]}  e5 {[%clk 0:02:59]} 5. Ne2 {[%clk 0:03:00]}  Be7 {[%clk 0:02:59]} 6. O-O {[%clk 0:02:59]}  O-O {[%clk 0:02:56]} 7. f4 {[%clk 0:02:59]}  exd4 {[%clk 0:02:54]} 8. cxd4 {[%clk 0:02:58]}  c5 {[%clk 0:02:54]} 9. Be3 {[%clk 0:02:57]}  Ng4 {[%clk 0:02:52]} 10. Bd2 {[%clk 0:02:55]}  cxd4 {[%clk 0:02:44]} 11. Nxd4 {[%clk 0:02:53]}  Qb6 {[%clk 0:02:42]} 12. Bc3 {[%clk 0:02:41]}  Ne3 {[%clk 0:02:40]} 13. Qe2 {[%clk 0:02:41]}  Nxf1 {[%clk 0:02:37]} 14. Qxf1 {[%clk 0:02:41]}  Bf6 {[%clk 0:02:34]} 15. Qf2 {[%clk 0:02:41]}  Nc5 {[%clk 0:02:28]} 16. Bc2 {[%clk 0:02:38]}  Ne6 {[%clk 0:02:23]} 17. Nf5 {[%clk 0:02:23]}  Qxf2+ {[%clk 0:02:19]} 18. Kxf2 {[%clk 0:02:23]}  Bxc3 {[%clk 0:02:15]} 19. Nxc3 {[%clk 0:02:22]}  Nxf4 {[%clk 0:02:10]} 20. Nxd6 {[%clk 0:02:22]}  Be6 {[%clk 0:02:02]} 21. g3 {[%clk 0:02:15]}  Nh3+ {[%clk 0:01:58]} 22. Ke3 {[%clk 0:02:14]}  b6 {[%clk 0:01:33]} 23. Ndb5 {[%clk 0:01:56]}  h6 {[%clk 0:01:15]} 24. Rd1 {[%clk 0:01:53]}  Ng5 {[%clk 0:01:08]} 25. h4 {[%clk 0:01:50]}  Nh7 {[%clk 0:01:08]} 26. Nc7 {[%clk 0:01:49]}  Rac8 {[%clk 0:01:06]} 27. Nxe6 {[%clk 0:01:49]}  fxe6 {[%clk 0:01:07]} 28. Bb3 {[%clk 0:01:49]}  Rfe8 {[%clk 0:01:04]} 29. Rd7 {[%clk 0:01:48]}  Nf6 {[%clk 0:00:58]} 30. Rxa7 {[%clk 0:01:46]}  Ng4+ {[%clk 0:00:56]} 31. Ke2 {[%clk 0:01:44]}  Kh7 {[%clk 0:00:51]} 32. Rb7 {[%clk 0:01:44]}  Rb8 {[%clk 0:00:48]} 33. Rxb8 {[%clk 0:01:43]}  Rxb8 {[%clk 0:00:49]} 34. Bxe6 {[%clk 0:01:44]}  Ne5 {[%clk 0:00:49]} 35. Nd5 {[%clk 0:01:36]}  Kg6 {[%clk 0:00:48]} 36. Bf5+ {[%clk 0:01:33]}  Kf7 {[%clk 0:00:48]} 37. a4 {[%clk 0:01:26]}  g6 {[%clk 0:00:47]} 38. Bh3 {[%clk 0:01:25]}  Nc4 {[%clk 0:00:46]} 39. b3 {[%clk 0:01:23]}  Nd6 {[%clk 0:00:46]} 40. Nc3 {[%clk 0:01:22]}  Kf6 {[%clk 0:00:41]} 41. Kd3 {[%clk 0:01:21]}  Ke5 {[%clk 0:00:41]} 42. Bg2 {[%clk 0:01:21]}  Rf8 {[%clk 0:00:39]} 43. Ke3 {[%clk 0:01:15]}  g5 {[%clk 0:00:32]} 44. hxg5 {[%clk 0:01:14]}  hxg5 {[%clk 0:00:33]} 45. Bf3 {[%clk 0:01:13]}  Rh8 {[%clk 0:00:32]} 46. Nd5 {[%clk 0:01:07]}  Rh3 {[%clk 0:00:32]} 47. Nxb6 {[%clk 0:01:01]}  Rxg3 {[%clk 0:00:31]} 48. Nd7+ {[%clk 0:01:01]}  Ke6 {[%clk 0:00:29]} 49. Nc5+ {[%clk 0:01:01]}  Ke5 {[%clk 0:00:29]} 50. Kf2 {[%clk 0:01:01]}  Rh3 {[%clk 0:00:20]} 51. Bg2 {[%clk 0:00:59]}  Rc3 {[%clk 0:00:19]} 52. b4 {[%clk 0:00:54]}  g4 {[%clk 0:00:18]} 53. a5 {[%clk 0:00:51]}  g3+ {[%clk 0:00:18]} 54. Kf1 {[%clk 0:00:49]}  Nc4 {[%clk 0:00:18]} 55. Bh3 {[%clk 0:00:33]}  Ne3+ {[%clk 0:00:16]} 56. Kg1 {[%clk 0:00:32]}  Rc1+ {[%clk 0:00:14]} 0-1


[Site "https://www.chess.com"]

[Event "Titled Tuesday Blitz April 18 Late 2023"]
[White "Al-Tarboush, Ward"]
[Black "Maranhao,Jose Renato Ruiz"]
[WhiteFideId "7601450"]
[BlackFideId "2135175"]
[WhiteElo "2265"]
[BlackElo "1970"]
[Result "1-0"]
[Round "01"]
[TimeControl "180+2"]
[Date "2023.04.18"]
[WhiteClock "0:02:13"]
[BlackClock "0:00:01"]

1. e4 {[%clk 0:02:58]}  c6 {[%clk 0:02:59]} 2. Nf3 {[%clk 0:02:57]}  d5 {[%clk 0:02:59]} 3. Nc3 {[%clk 0:02:57]}  Bg4 {[%clk 0:02:57]} 4. h3 {[%clk 0:02:57]}  Bxf3 {[%clk 0:02:57]} 5. Qxf3 {[%clk 0:02:58]}  dxe4 {[%clk 0:02:48]} 6. Nxe4 {[%clk 0:02:57]}  Nf6 {[%clk 0:02:44]} 7. Nxf6+ {[%clk 0:02:56]}  exf6 {[%clk 0:02:41]} 8. Bc4 {[%clk 0:02:54]}  Bd6 {[%clk 0:02:32]} 9. Qe4+ {[%clk 0:02:50]}  Qe7 {[%clk 0:02:00]} 10. Qxe7+ {[%clk 0:02:50]}  Bxe7 {[%clk 0:02:00]} 11. O-O {[%clk 0:02:50]}  O-O {[%clk 0:01:55]} 12. d4 {[%clk 0:02:49]}  Nd7 {[%clk 0:01:52]} 13. Bf4 {[%clk 0:02:48]}  Nb6 {[%clk 0:01:52]} 14. Bb3 {[%clk 0:02:44]}  Nd5 {[%clk 0:01:43]} 15. Bg3 {[%clk 0:02:43]}  a5 {[%clk 0:01:35]} 16. c4 {[%clk 0:02:42]}  Nb6 {[%clk 0:00:56]} 17. c5 {[%clk 0:02:41]}  a4 {[%clk 0:00:33]} 18. cxb6 {[%clk 0:02:30]}  axb3 {[%clk 0:00:32]} 19. axb3 {[%clk 0:02:31]}  Rfd8 {[%clk 0:00:10]} 20. Ra7 {[%clk 0:02:25]}  Bb4 {[%clk 0:00:02]} 21. Rfa1 {[%clk 0:02:14]}  Rxa7 {[%clk 0:00:01]} 22. bxa7 {[%clk 0:02:14]}  Ra8 {[%clk 0:00:01]} 23. Bb8 {[%clk 0:02:13]} 1-0


[Site "https://www.chess.com"]

[Event "Titled Tuesday Blitz April 18 Late 2023"]
[White "Aqib Javaid Butt"]
[Black "Taboas Rodriguez, Daniel"]
[WhiteFideId "7801262"]
[BlackFideId "2208466"]
[WhiteElo "1659"]
[BlackElo "2365"]
[Result "0-1"]
[Round "01"]
[TimeControl "180+2"]
[Date "2023.04.18"]
[WhiteClock "0:01:53"]
[BlackClock "0:02:36"]

1. d4 {[%clk 0:02:57]}  Nf6 {[%clk 0:02:59]} 2. Nf3 {[%clk 0:02:57]}  g6 {[%clk 0:02:59]} 3. c3 {[%clk 0:02:55]}  b6 {[%clk 0:02:58]} 4. Bf4 {[%clk 0:02:55]}  Bb7 {[%clk 0:02:58]} 5. g3 {[%clk 0:02:56]}  c5 {[%clk 0:02:58]} 6. Bg2 {[%clk 0:02:53]}  Bg7 {[%clk 0:02:58]} 7. O-O {[%clk 0:02:51]}  O-O {[%clk 0:02:58]} 8. Ne5 {[%clk 0:02:49]}  Bxg2 {[%clk 0:02:57]} 9. Kxg2 {[%clk 0:02:50]}  d6 {[%clk 0:02:58]} 10. Nf3 {[%clk 0:02:49]}  Qc7 {[%clk 0:02:52]} 11. Nbd2 {[%clk 0:02:47]}  Qb7 {[%clk 0:02:52]} 12. Kg1 {[%clk 0:02:45]}  Nd5 {[%clk 0:02:43]} 13. Bg5 {[%clk 0:02:32]}  h6 {[%clk 0:02:43]} 14. e4 {[%clk 0:02:19]}  hxg5 {[%clk 0:02:40]} 15. exd5 {[%clk 0:02:18]}  Qxd5 {[%clk 0:02:40]} 16. dxc5 {[%clk 0:02:04]}  bxc5 {[%clk 0:02:39]} 17. Re1 {[%clk 0:02:00]}  Nc6 {[%clk 0:02:39]} 18. c4 {[%clk 0:01:56]}  Qf5 {[%clk 0:02:39]} 19. Qc2 {[%clk 0:01:53]}  Qxc2 {[%clk 0:02:36]} 0-1


[Site "https://www.chess.com"]

[Event "Titled Tuesday Blitz April 18 Late 2023"]
[White "Jimenez Almeida, Luis David"]
[Black "Manu_ChessExcelsior"]
[WhiteFideId "22242244"]
[WhiteElo "2245"]
[BlackElo "1968"]
[Result "1-0"]
[Round "01"]
[TimeControl "180+2"]
[Date "2023.04.18"]
[WhiteClock "0:01:01"]
[BlackClock "0:00:03"]

1. e4 {[%clk 0:02:53]}  e5 {[%clk 0:02:57]} 2. Nf3 {[%clk 0:02:52]}  Nc6 {[%clk 0:02:57]} 3. d4 {[%clk 0:02:50]}  exd4 {[%clk 0:02:57]} 4. Bc4 {[%clk 0:02:50]}  Nf6 {[%clk 0:02:50]} 5. e5 {[%clk 0:02:49]}  Ne4 {[%clk 0:02:50]} 6. Bd5 {[%clk 0:02:45]}  Nc5 {[%clk 0:02:46]} 7. Nxd4 {[%clk 0:02:44]}  Nxe5 {[%clk 0:02:19]} 8. O-O {[%clk 0:02:43]}  Ne6 {[%clk 0:02:19]} 9. Re1 {[%clk 0:02:42]}  Nc6 {[%clk 0:02:14]} 10. Nf5 {[%clk 0:02:40]}  g6 {[%clk 0:02:07]} 11. Nh6 {[%clk 0:02:36]}  Qh4 {[%clk 0:01:57]} 12. Ng4 {[%clk 0:02:22]}  Be7 {[%clk 0:01:52]} 13. g3 {[%clk 0:02:21]}  Qh5 {[%clk 0:01:45]} 14. Nc3 {[%clk 0:02:15]}  O-O {[%clk 0:01:38]} 15. Bf3 {[%clk 0:02:10]}  Qa5 {[%clk 0:01:09]} 16. Nd5 {[%clk 0:02:08]}  f5 {[%clk 0:00:59]} 17. Nh6+ {[%clk 0:02:02]}  Kg7 {[%clk 0:00:57]} 18. b4 {[%clk 0:01:54]}  Bxb4 {[%clk 0:00:46]} 19. c3 {[%clk 0:01:35]}  Be7 {[%clk 0:00:42]} 20. c4 {[%clk 0:01:28]}  Qc5 {[%clk 0:00:20]} 21. Be3 {[%clk 0:01:18]}  Qxc4 {[%clk 0:00:20]} 22. Rc1 {[%clk 0:01:18]}  Qb5 {[%clk 0:00:18]} 23. Qd2 {[%clk 0:01:09]}  f4 {[%clk 0:00:14]} 24. Nxf4 {[%clk 0:01:07]}  Nxf4 {[%clk 0:00:13]} 25. Bxf4 {[%clk 0:01:07]}  Bf6 {[%clk 0:00:12]} 26. Ng4 {[%clk 0:01:03]}  d6 {[%clk 0:00:12]} 27. Bh6+ {[%clk 0:01:02]}  Kg8 {[%clk 0:00:06]} 28. Bd5+ {[%clk 0:01:02]}  Rf7 {[%clk 0:00:03]} 29. Re8# {[%clk 0:01:01]} 1-0


[Site "https://www.chess.com"]